Cogmind - Beta 16.1 @@@ ROGUE MODE // 2026.04.16 @ 22:36:20 Player: SunShine214 Result: Destroyed by DC-OR5(R) with Subdweller Machine Gun Performance ------------- Evolutions (0) 0 Regions Visited (2) 400 Robots Destroyed (33) 165 Value Destroyed (934) 934 Prototype IDs (3) 60 Alien Tech Used (0) 0 Bonus (0) 0 TOTAL SCORE: 1559 Bonus ------- None Cogmind --------- Core Integrity 0/250 Matter 295/300 Energy 163/170 System Corruption 2% Temperature Cool (6) Movement Core (600) Ox11 Location -10/Subcaves Parts ------- > --- POWER (1+1) ------ Makeshift Power Source > --- PROPULSION (2+1) - (None) > --- UTILITY (2+1) ---- Large Storage Unit Rainbow Chip > --- WEAPON (2+1) ----- Subdweller Beam Cannon Makeshift Hammer (fused) > --- INVENTORY (15) --- Ion Engine Light Ion Engine Flight Unit Flight Unit Large Storage Unit Scrap Shield Hacking Suite Medium Laser Medium Laser Subdweller Laser Subdweller Laser Subdweller Beam Cannon Subdweller Shrapnel Launcher Ripper Peak State ------------ > --- POWER ------------ Makeshift Power Source > --- PROPULSION ------- Spiked Treads > --- UTILITY ---------- Large Storage Unit Rainbow Chip > --- WEAPON ----------- Subdweller Beam Cannon Makeshift Hammer > --- INVENTORY -------- Ion Engine Light Ion Engine Flight Unit Flight Unit Large Storage Unit Scrap Shield Hacking Suite Medium Laser Medium Laser Subdweller Laser Subdweller Laser Subdweller Beam Cannon Subdweller Shrapnel Launcher Ripper [Rating: 28] Favorites ----------- Power Makeshift Power Source Engine Makeshift Power Source Propulsion Light Treads Treads Light Treads Wheel Subdweller Monowheel Utility Large Storage Unit Device Sensor Array Storage Large Storage Unit Processor Targeting Computer Protection Light Armor Plating Weapon Medium Laser Energy Gun Medium Laser Energy Cannon Subdweller Beam Cannon Ballistic Gun Barrage Gun Launcher Grenade Launcher Special Weapon Mining Laser Impact Weapon Makeshift Hammer Build | -11 -10 -10 ------- Run | Yrd Mat Sub Slots Evolved . | . . . Power . | . . . Propulsion . | . . . Utility . | . . . Weapon . | . . . Parts Attached 29 | 7 9 13 Power 3 | 1 1 1 Engine 3 | 1 1 1 Core . | . . . Reactor . | . . . Propulsion 6 | 2 1 3 Treads 4 | 2 1 1 Leg . | . . . Wheel 2 | . . 2 Hover . | . . . Flight . | . . . Utility 8 | 2 2 4 Device 2 | 1 . 1 Storage 2 | 1 1 . Processor 3 | . 1 2 Hackware . | . . . Protection 1 | . . 1 Artifact . | . . . Weapon 12 | 2 5 5 Energy Gun 6 | 2 4 . Energy Cannon 2 | . . 2 Ballistic Gun 1 | . . 1 Ballistic Cannon . | . . . Launcher 1 | . . 1 Special Weapon 1 | . 1 . Impact Weapon 1 | . . 1 Slashing Weapon . | . . . Piercing Weapon . | . . . Special Melee Weapon . | . . . Unidentified Prototypes 1 | . . 1 Parts Lost 9 | . . 9 Power . | . . . Propulsion 5 | . . 5 Utility 2 | . . 2 Weapon 2 | . . 2 Highest Loss Streak 4 | . . 4 To Critical Strikes . | . . . Average Backups 9 | . 7 12 Power 1 | . . 1 Propulsion 2 | . 1 2 Utility 2 | . 2 3 Weapon 3 | . 2 4 Tool/Special . | . . . Unused Backups 10 | . . 10 Power 1 | . . 1 Propulsion 2 | . . 2 Utility 3 | . . 3 Weapon 4 | . . 4 Tool/Special . | . . . Average Slot Usage (%) 90 | . 99 84 Engine 13 | . 13 14 Treads 19 | . 27 13 Wheel 1 | . . 2 Device 3 | . 1 4 Storage 14 | . 14 14 Processor 8 | . 12 5 Protection 1 | . . 2 Energy Gun 14 | . 27 4 Energy Cannon 3 | . . 5 Ballistic Gun 1 | . . 2 Launcher 1 | . . 3 Impact Weapon 6 | . . 10 Peak Build Rating 28 | 7 8 28 Average Rating 10 | 5 7 13 On Entrance 5 | . 7 8 Avg Prop Armor Cover (%) 17 | . . 17 Naked Turns . | . . . Heaviest Build 35 | 11 29 35 Greatest Support 40 | 40 40 40 Greatest Overweight (x) 9 | . 9 1 Average Overweight (x) . | . . . Largest Inventory Capacity 15 | 8 15 15 Average Capacity 12 | 6 10 15 Most Carried 15 | 1 11 15 Average Carried 10 | . 7 12 Final Capacity 15 | 8 15 15 Final Carried 15 | 1 11 15 Class Distribution -------------------- 95% | Mutant 4% | Derelict-Mutant Dominant Class ---------------- Mutant | -10/Materials Mutant | -10/Subcaves Resources | -11 -10 -10 ----------- Run | Yrd Mat Sub Matter Collected 708 | 269 175 264 Remotely 135 | 135 . . Salvage Created 1106 | 62 481 563 Parts 53 | 5 20 28 Haulers Intercepted 1 | . 1 . Recyclers Shooed . | . . . Parts Field Recycled . | . . . Retrieved Matter . | . . . Parts Self-Destructed 12 | . . 12 Prevented . | . . . Parts Restored . | . . . Kills | -11 -10 -10 ------- Run | Yrd Mat Sub Combat Hostiles Destroyed 26 | . 10 16 Melee 3 | . . 3 Guns 12 | . 8 4 Cannons 3 | . . 3 AOE 2 | . . 2 Classes Destroyed 8 | 2 5 1 Tunneler 1 | 1 . . Hauler 1 | . 1 . Recycler 1 | 1 . . Operator 2 | . 2 . Watcher 2 | . 2 . Swarmer 6 | . 3 3 Grunt 9 | . 7 2 Subdweller 11 | . . 11 Best Kill Streak 3 | 2 3 3 Combat Bots Only 3 | . 3 3 Max Kills in Single Turn 1 | 1 1 1 Gunslinging . | . . . Exploded 1 | . . 1 Melee 1 | . . 1 Uniques/NPCs Destroyed . | . . . Combat | -11 -10 -10 -------- Run | Yrd Mat Sub Hostile Shots Fired 133 | . 50 83 Missed 36 | . 17 19 Hits 97 | . 33 64 Projectile 97 | . 33 64 AOE 1 | . . 1 Critical Strikes 2 | . . 2 Damage Taken 1678 | . 375 1303 Core 261 | . 44 217 Absorbed by Shields . | . . . Core Remaining (%) 100 | 100 . . Volleys Fired 101 | 4 69 28 Largest 2 | 2 2 2 Hottest 150 | 80 150 150 Shots Fired 188 | 8 137 43 Gun 159 | 8 136 15 Cannon 16 | . . 16 Launcher 10 | . . 10 Special 3 | . 1 2 Kinetic . | . . . Thermal 178 | 8 137 33 Explosive 10 | . . 10 Electromagnetic . | . . . Robot Hit Streak 11 | 2 10 11 Robot Miss Streak 7 | 2 7 1 Penetration Max . | . . . Secondary Targets 2 | . 2 . Max Gunslinging Chain 1 | . 1 . Shots Hit Robots 133 | 4 86 43 Core Hits 44 | 3 26 15 Critical Kills 1 | . . 1 Critical Parts Destroyed 2 | . . 2 Critical Strikes 15 | . 12 3 Burn 12 | . 12 . Meltdown 1 | . . 1 Smash 2 | . . 2 Melee Attacks 34 | . . 34 Impact 34 | . . 34 Slashing . | . . . Piercing . | . . . Sneak Attacks . | . . . Combat Hostiles . | . . . Follow-up Attacks . | . . . Damage Inflicted 2671 | 53 1103 1515 Guns 1235 | 47 1088 100 Cannons 272 | . . 272 Explosions 365 | . . 365 Melee 778 | . . 778 Ramming 21 | 6 15 . Kinetic . | . . . Thermal 1507 | 47 1088 372 Explosive 365 | . . 365 Electromagnetic . | . . . Impact 778 | . . 778 Slashing . | . . . Piercing . | . . . Highest Corruption 2 | . 2 2 Average Corruption 1 | . 1 2 Corruption Purged . | . . . Corruption Blocked . | . . . Effects 41 | . 5 36 Message Errors 3 | . 1 2 Matter Fused 7 | . 2 5 Heat Flow Errors 7 | . . 7 Energy Discharges 10 | . 1 9 Parts Fused 1 | . . 1 Data Loss (minor) 5 | . . 5 Data Loss (major) 1 | . . 1 Misfires 4 | . . 4 Alerts 1 | . . 1 Weapon Failures 2 | . 1 1 Overload Shots . | . . . Overflow Damage 120 | . . 120 Projectiles . | . . . Explosions . | . . . Melee 120 | . . 120 Knockbacks 5 | . . 5 Impact 5 | . . 5 Kinetic . | . . . Secondary . | . . . Self-Inflicted Damage 30 | . . 30 Shots 2 | . . 2 Rammed 5 | 1 4 . Targets Rammed 5 | 1 4 . Kicked . | . . . Crushed . | . . . Highest Temperature 366 | 72 366 355 Average Temperature 90 | 38 92 90 Received Heat Transfer 950 | . 168 782 Siege Activations . | . . . Martial Activations . | . . . Shielding Activations . | . . . Robots Disrupted . | . . . Combat Hostiles . | . . . Robots Corrupted 3 | . . 3 Combat Hostiles 3 | . . 3 Parts Fried 4 | . . 4 Impact Corruptions 5 | . . 5 Robots Melted 3 | . 2 1 Combat Hostiles 3 | . 2 1 Parts Melted 10 | . 8 2 Heat Transferred 4813 | 100 4047 666 Parts Sabotaged . | . . . Parts Stolen . | . . . Parts Stripped . | . . . Power Chain Reactions . | . . . Alert | -11 -10 -10 ------- Run | Yrd Mat Sub Maximum Alert Level . | . . . Low Security (%) 100 | 100 100 . Level 1 . | . . . Level 2 . | . . . Level 3 . | . . . Level 4 . | . . . Level 5 . | . . . High Security . | . . . Max Security . | . . . Peak Influence 70 | 10 70 . Initial . | . . . Average 16 | . 16 . Influence Increases 454 | 10 324 120 Destroy 0b10 Robot/C 300 | . 200 100 Destroy 0b10 Robot/NC 35 | 10 25 . Destroy Leader 76 | . 56 20 Successful Hack 12 | . 12 . Disable Machine 15 | . 15 . Destroy Structure 1 | . 1 . Lose Combat Pursuer 15 | . 15 . Influence Decreases 454 | 10 291 153 Entered New Map 17 | . . 17 Time Decay 417 | 10 291 116 Lost Part 20 | . . 20 Squads Dispatched 2 | . 2 . Investigation . | . . . Extermination . | . . . Reinforcement 2 | . 2 . Assault . | . . . Garrison . | . . . Intercept . | . . . Searches Triggered . | . . . Construction Impeded . | . . . Haulers Reinforced . | . . . Active Scanning Responses . | . . . Cargo Convoy Interrupts . | . . . Stealth | -11 -10 -10 --------- Run | Yrd Mat Sub Distress Signals 1 | . 1 . Communications Jammed . | . . . Distress Signals . | . . . Times Spotted 51 | . 32 19 Peak Tracking Total 3 | . 3 3 Tactical Retreats 2 | . 1 1 Traps | -11 -10 -10 ------- Run | Yrd Mat Sub Traps Triggered 4 | . 4 . Indirectly . | . . . Trap Hack Attempts . | . . . Triggered . | . . . Disarmed . | . . . Reprogrammed . | . . . Reused . | . . . Traps Extracted . | . . . Installed . | . . . Triggered . | . . . Machines | -11 -10 -10 ---------- Run | Yrd Mat Sub Machines Disabled 1 | . 1 . Max in Single Turn 1 | . 1 . Machines Repaired . | . . . Machines Dismantled . | . . . Machines Sabotaged . | . . . Overloaded Fab Kills . | . . . Hacking | -11 -10 -10 --------- Run | Yrd Mat Sub Machines Accessed 5 | . 5 . Terminals 4 | . 4 . Fabricators . | . . . Repair Stations . | . . . Recycling Units 1 | . 1 . Scanalyzers . | . . . Garrison Access . | . . . Total Hacks 11 | . 11 . Successful 3 | . 3 . Failed 8 | . 8 . Catastrophic 1 | . 1 . Database Lockouts . | . . . Manual 2 | . 2 . Terminals 10 | . 10 . Fabricators . | . . . Repair Stations . | . . . Recycling Units 1 | . 1 . Scanalyzers . | . . . Garrison Access . | . . . Terminal Hacks 2 | . 2 . Prototype ID Bank 1 | . 1 . Branch Access Points 1 | . 1 . Fabricator Hacks . | . . . Repair Station Hacks . | . . . Recycling Unit Hacks 1 | . 1 . Retrieve Components 1 | . 1 . Scanalyzer . | . . . Garrison Access Hacks . | . . . Unauthorized Hacks . | . . . Terminals . | . . . Fabricators . | . . . Repair Stations . | . . . Recycling Units . | . . . Scanalyzers . | . . . Garrison Access . | . . . Data Cores Recovered . | . . . Used . | . . . Hacking Detections 3 | . 3 . Full Trace Events . | . . . Feedback Events . | . . . Feedback Blocked . | . . . Robot Schematics Acquired . | . . . Robots Built . | . . . Authchips . | . . . Time . | . . . Total Robot Build Rating . | . . . Part Schematics Acquired . | . . . Parts Built . | . . . Authchips . | . . . Time . | . . . Total Part Build Rating . | . . . Part Studies Acquired . | . . . Parts Repaired . | . . . Time . | . . . Parts Recycled . | . . . Recycled Matter . | . . . Retrieved Matter . | . . . Retrieved Components 1 | . 1 . Parts Scanalyzed . | . . . Part Schematics Acquired . | . . . Parts Damaged . | . . . Bothacking | -11 -10 -10 ------------ Run | Yrd Mat Sub Used RIF Installer . | . . . Robots Hacked . | . . . Non-combat . | . . . Combat . | . . . Robot Hacks Applied . | . . . Relay Couplers Released . | . . . Fabnet Peak Effective % . | . . . Robots Rewired . | . . . Allies Hacked . | . . . Hacks Repelled . | . . . Allies | -11 -10 -10 -------- Run | Yrd Mat Sub Total Allies . | . . . Largest Group . | . . . Highest-Rated Group . | . . . Highest-Rated Ally . | . . . Total Orders . | . . . Ally Attacks . | . . . Total Damage . | . . . Kills . | . . . Allies Corrupted . | . . . Allies Melted . | . . . Intel | -11 -10 -10 ------- Run | Yrd Mat Sub Active Infowar (turns) 791 | . . 791 Sensors 791 | . . 791 Robot Analysis Total . | . . . Derelict Logs Recovered . | . . . Drone Launches . | . . . Drone Recoveries . | . . . Exploration | -11 -10 -10 ------------- Run | Yrd Mat Sub Turns Passed 4352 | 100 1780 2472 Spaces Moved 1848 | 50 703 1095 Core 5 | 4 1 . Treads 1549 | 46 702 801 Legs . | . . . Wheels 294 | . . 294 Hover . | . . . Flight . | . . . Fastest Speed 50 | 50 160 110 Average Speed 187 | 151 160 207 Slowest Speed 500 | 160 500 260 Overloaded Moves . | . . . Propulsion Burnouts . | . . . Robots Hopped . | . . . Potential Cave-ins . | . . . Cave-ins Triggered . | . . . Exploration Rate (%) 52 | 3 83 72 Regions Visited 2 Branch Regions 1 Pre-discovered Areas . | . . . Known Exits Taken . | . . . Unknown Exits Taken 2 | 1 1 . Scrap Searched 10 | . . 10 Spaces Dug 2 | . . 2 Terrain Destroyed 58 | . . 58 Melee 2 | . . 2 Projectile 3 | . . 3 AOE 53 | . . 53 Terrain Rammed . | . . . Walls Destroyed . | . . . Machines Disabled . | . . . Actions | -11 -10 -10 --------- Run | Yrd Mat Sub Total 2486 | 62 1206 1218 Wait 434 | . 399 35 Move 1847 | 50 702 1095 Hop . | . . . Pick Up 19 | 1 9 9 Fast Attach 15 | 7 6 2 Attach 6 | . . 6 Detach . | . . . Swap 20 | . 12 8 Drop 6 | . 5 1 Fire 101 | 4 69 28 Melee 34 | . . 34 Ram . | . . . Kick . | . . . Crush 4 | . 4 . Escape Stasis . | . . . Rewire . | . . . Trap . | . . . Miscellaneous . | . . . Route ------- -11/Scrapyard -10/Materials (discovered 5 exits: [*Mat x2] / *Min x2 / [*Sub]) -10/Subcaves (discovered 2 exits: *Mat x2) History --------- Turn | Location | Event 8 | -11/Scrapyard | Discovered new exit (range 15) 101 | -11/Scrapyard | Entered Materials 171 | -10/Materials | Discovered new exit (range 9) 306 | -10/Materials | Build established: Mutant 769 | -10/Materials | Discovered new exit (range 15) 899 | -10/Materials | Discovered new exit (range 13) 1220 | -10/Materials | Discovered new exit (range 5) 1812 | -10/Materials | Identified exit to Mines 1857 | -10/Materials | Discovered new exit (range 5) 1881 | -10/Materials | Entered Subcaves 2161 | -10/Subcaves | A swath of the cavern ceiling suddenly collapsed 3162 | -10/Subcaves | Core integrity fell below 50% 3204 | -10/Subcaves | Lost 4 parts (2n1u1w) 3256 | -10/Subcaves | Discovered new exit (range 12) 3306 | -10/Subcaves | Shifting Twisted Machinery released Battle Rifle 3307 | -10/Subcaves | Shifting Twisted Machinery released Sub. Beam Cannon 3317 | -10/Subcaves | Shifting Twisted Machinery released Sub. Beam Cannon 3334 | -10/Subcaves | Discovered new exit (range 5) 3341 | -10/Subcaves | Identified exit to Materials 3345 | -10/Subcaves | Core integrity fell below 20% 3356 | -10/Subcaves | Shifting Twisted Machinery released Spk. Treads 3424 | -10/Subcaves | Shifting Twisted Machinery released Ripper 3427 | -10/Subcaves | Shifting Twisted Machinery released Sub. Shrapnel Launcher 4263 | -10/Subcaves | Curiously followed by a Cobbler waking with a query about "LVR3C" 4321 | -10/Subcaves | A Subdweller sparked back to life 4321 | -10/Subcaves | A Subdweller sparked back to life 4321 | -10/Subcaves | A Subdweller sparked back to life 4349 | -10/Subcaves | Found Prototype Processor 4349 | -10/Subcaves | Identified Rainbow Chip 4350 | -10/Subcaves | Attached Rainbow Chip, gained temporary slots: Power, Propulsion, Utility, Weapon 4353 | -10/Subcaves | Ambushed by Subdweller buried in earth 4353 | -10/Subcaves | Destroyed by DC-OR5(R) with Subdweller Machine Gun Last Messages --------------- 04339_ AM-A9K(R) knocked back. 04341_ AM-A9K(R) affixes Scrap Shield Fragment to Scrap Shield. 04344_ 4B-DNG(O) collects matter. 04349_ Discarded Signal Interpreter. 04349_ Acquired Prototype Processor. 04349_ Identified Rainbow Chip. 04350_ Core temporarily expanded with Power slot. 04350_ Core temporarily expanded with Propulsion slot. 04350_ Core temporarily expanded with Utility slot. 04350_ Core temporarily expanded with Weapon slot. 04352_ System corrupted: FCS attempts to trigger Sub. Beam Cannon. 04352_ System corrupted: Sub. Beam Cannon misfires. 04353_ Spk. Treads destroyed. Map ----- +----------------------------------------------------+ | ????????????????????????????????????????????????? | | ????????????????????????????????????????????????? | | ????????????????????????????????????????????????? | | ????????????????????????????????????????????????? | | ????????????????????????????????????????????????? | | ????????????????????????????????????????????????? | | ??????????????????#???##????????????????????????? | | ????????????????# ### #???????????????????????? | | ????????????????% ???????????????????????? | | ???????????????# ???????????????????????? | | ???????????????# ???????????????????????? | | ???????????????# ???????????????????????? | | ????????????#??# #???????????????????????? | | ????????????# ## ###?????????????????????? | | ????????????# % #?????????????????????? | | ????????????# ?????##??????????????? | | ?????????????# ?#####;##?????????????? | | ??????????#### ??# #?????????????? | | ?????????# % #?## #?????????????? | | ?????????? % # ### ##?????????????? | | ?????????????#% # # # # #??????????????? | | ??????????????# & ## ##??????????????? | | ???????????????# ]= ;## ##??????????????? | | ???????????????# ##;% ;; #??????????????? | | ???????????????## ???# R ; ##??????????????? | | ????????????????#????##; @ ##??????????????? | | ?????????????????????# ;;;R; ##?????????????? | | ?????????????????????## ## #?????????????? | | ??????????????????????######## #?????????????? | | ?????????????????????????????# ###?????????????? | | ?????????????????????????????# #??????????????? | | ??????????????????? ???????# #??????????????? | | ?????????????????? ?????# ##??????????????? | | ??????????????????# % ???### #??????????????? | | ??????????????????# ??## ##??????????????? | | ??????????????#????# ??#" ##???????????????? | | ?????????????? %##??#% ??#"" ###??????????????? | | ?????????????? #??# ??#""" #??????????????? | | ??????????????# #??# ###"" % #??????????????? | | ????????????????# ### "" ##??????????????? | | ????????????????# "" % ###???????????????? | | ????????????????# "" ## #??????????????? | | ????????????????????## "" #??????????????? | | ?????????????????##?## " #### #??????????????? | | ?????????????????# ## "" ##?# #??????????????? | | ?????????????????# "" "#?# #??????????????? | | ###??????????????## ""&= ##? #??????????????? | | #??????????????## *%&!#??# ??????????????? | | ???????????#####*%&[ ##?##% % #?????????????? | | ##?????##### [!& #### ##?????????????? | +----------------------------------------------------+ Best States ------------- Heat Dissipation 25 Energy Generation 15 Energy Capacity 250 Matter Stores 300 Matter Capacity 300 Sight Range 16 Robot Scan Range 14 Terrain Scan Density 10 Armor Coverage 150 Evasion (%) 40 Targeting Accuracy 5 Recoil Reduction 2 Item Schematics ----------------- None Robot Schematics ------------------ None Fabricated ------------ Nothing Repaired ---------- Nothing Studied --------- None Alien Tech Used ----------------- None Achievements -------------- None Challenges ------------ None Game ------ Seed SupercompositeSpikedShooter Manual? 0 Play Time 00:15:35 Cumulative 138.6 hours Start 2026.04.16 @ 22:20:50 End 2026.04.16 @ 22:36:20 Sessions 1 Manual Loads 0 Difficulty Rogue Special Mode None Game No. 214 Rogue 214 Adventurer 0 Explorer 0 Win Type - Total 1 Types 1/0/0/0/0/0/0/0/0/0 Lore% 50 Gallery% 54 Achievement% 41 Wizard Run 0 Options --------- Layout 1 ASCII 0 Keyboard 1 Movement Arrows Keybinds 0 Fullscreen 1 Font 24/Smallcaps Map View 50x35 Zoom Use 0% Tactical HUD 1 Map Filters NONE Filters NONE Steam 1 RUN: 1e3104c3-1a9b-4972-a2d4-449ca728dc6f